[Event "Titled Tuesday Blitz December 06 Late 2022"]
[White "Drozdowski, Kacper"]
[Black "Paravyan, David"]
[WhiteFideId "1136720"]
[BlackFideId "4194985"]
[WhiteElo "2486"]
[BlackElo "2551"]
[Result "1/2-1/2"]
[Round "07"]
[TimeControl "180+1"]
[Date "2022.12.06"]
[WhiteClock "0:00:06"]
[BlackClock "0:00:05"]

1. e4 {[%clk 0:03:00]}  e5 {[%clk 0:03:00]} 2. Nf3 {[%clk 0:03:00]}  Nf6 {[%clk 0:03:00]} 3. Nxe5 {[%clk 0:02:59]}  d6 {[%clk 0:03:01]} 4. Nf3 {[%clk 0:03:00]}  Nxe4 {[%clk 0:03:01]} 5. d4 {[%clk 0:03:00]}  d5 {[%clk 0:03:02]} 6. Bd3 {[%clk 0:03:01]}  Bd6 {[%clk 0:03:02]} 7. O-O {[%clk 0:03:01]}  O-O {[%clk 0:03:03]} 8. c4 {[%clk 0:03:02]}  c6 {[%clk 0:03:03]} 9. Nc3 {[%clk 0:03:02]}  Nxc3 {[%clk 0:03:04]} 10. bxc3 {[%clk 0:03:03]}  dxc4 {[%clk 0:03:04]} 11. Bxc4 {[%clk 0:03:02]}  Bg4 {[%clk 0:03:05]} 12. h3 {[%clk 0:03:02]}  Bh5 {[%clk 0:03:05]} 13. Re1 {[%clk 0:03:02]}  Nd7 {[%clk 0:03:05]} 14. Bd3 {[%clk 0:02:58]}  h6 {[%clk 0:02:34]} 15. a4 {[%clk 0:02:54]}  Qa5 {[%clk 0:02:15]} 16. Bd2 {[%clk 0:02:46]}  Rae8 {[%clk 0:02:13]} 17. Rxe8 {[%clk 0:02:36]}  Rxe8 {[%clk 0:02:13]} 18. g4 {[%clk 0:02:35]}  Bg6 {[%clk 0:02:13]} 19. Bxg6 {[%clk 0:02:33]}  fxg6 {[%clk 0:02:13]} 20. c4 {[%clk 0:01:52]}  Qc7 {[%clk 0:01:57]} 21. Qb3 {[%clk 0:01:48]}  Kh7 {[%clk 0:01:55]} 22. Qd3 {[%clk 0:01:38]}  Nf6 {[%clk 0:01:48]} 23. Re1 {[%clk 0:01:37]}  Rxe1+ {[%clk 0:01:48]} 24. Bxe1 {[%clk 0:01:37]}  Qe7 {[%clk 0:01:46]} 25. Kf1 {[%clk 0:01:31]}  Bc7 {[%clk 0:01:36]} 26. Bd2 {[%clk 0:01:26]}  Qe6 {[%clk 0:01:26]} 27. Be3 {[%clk 0:01:24]}  a6 {[%clk 0:01:22]} 28. Kg2 {[%clk 0:01:11]}  b5 {[%clk 0:01:13]} 29. axb5 {[%clk 0:01:11]}  axb5 {[%clk 0:01:11]} 30. cxb5 {[%clk 0:01:01]}  cxb5 {[%clk 0:01:11]} 31. Qxb5 {[%clk 0:01:01]}  Qe4 {[%clk 0:00:53]} 32. Qe2 {[%clk 0:00:30]}  Nd5 {[%clk 0:00:52]} 33. Kf1 {[%clk 0:00:28]}  Ba5 {[%clk 0:00:31]} 34. Bd2 {[%clk 0:00:26]}  Qb1+ {[%clk 0:00:30]} 35. Kg2 {[%clk 0:00:26]}  Bxd2 {[%clk 0:00:16]} 36. Qxd2 {[%clk 0:00:26]}  g5 {[%clk 0:00:14]} 37. Ne1 {[%clk 0:00:18]}  Nf4+ {[%clk 0:00:14]} 38. Kh2 {[%clk 0:00:17]}  Qe4 {[%clk 0:00:13]} 39. Qe3 {[%clk 0:00:15]}  Qd5 {[%clk 0:00:07]} 40. Qd2 {[%clk 0:00:15]}  Kh8 {[%clk 0:00:06]} 41. Qc2 {[%clk 0:00:11]}  Qd6 {[%clk 0:00:06]} 42. Qc8+ {[%clk 0:00:10]}  Kh7 {[%clk 0:00:06]} 43. Qc2+ {[%clk 0:00:09]}  Kg8 {[%clk 0:00:06]} 44. Qc8+ {[%clk 0:00:09]}  Kf7 {[%clk 0:00:06]} 45. Qf5+ {[%clk 0:00:10]}  Kg8 {[%clk 0:00:06]} 46. Qc8+ {[%clk 0:00:10]}  Kh7 {[%clk 0:00:06]} 47. Qc2+ {[%clk 0:00:10]}  Ng6+ {[%clk 0:00:05]} 48. Kg1 {[%clk 0:00:09]}  Qxd4 {[%clk 0:00:05]} 49. Ng2 {[%clk 0:00:10]}  Qa1+ {[%clk 0:00:03]} 50. Kh2 {[%clk 0:00:10]}  Qe5+ {[%clk 0:00:03]} 51. Kg1 {[%clk 0:00:10]}  Qa1+ {[%clk 0:00:04]} 52. Kh2 {[%clk 0:00:11]}  Qf6 {[%clk 0:00:04]} 53. Ne3 {[%clk 0:00:09]}  Kh8 {[%clk 0:00:05]} 54. Qc8+ {[%clk 0:00:09]}  Kh7 {[%clk 0:00:05]} 55. Qf5 {[%clk 0:00:09]}  Qd6+ {[%clk 0:00:05]} 56. Kg1 {[%clk 0:00:09]}  Kg8 {[%clk 0:00:05]} 57. Qc8+ {[%clk 0:00:09]}  Nf8 {[%clk 0:00:05]} 58. Qc2 {[%clk 0:00:08]}  Ne6 {[%clk 0:00:04]} 59. Nf5 {[%clk 0:00:07]}  Qd7 {[%clk 0:00:05]} 60. Qc4 {[%clk 0:00:08]}  Kh8 {[%clk 0:00:04]} 61. Qe4 {[%clk 0:00:07]}  Nf4 {[%clk 0:00:04]} 62. Kh2 {[%clk 0:00:07]}  Qc7 {[%clk 0:00:03]} 63. Qe8+ {[%clk 0:00:06]}  Kh7 {[%clk 0:00:04]} 64. Qe7 {[%clk 0:00:06]}  Qxe7 {[%clk 0:00:02]} 65. Nxe7 {[%clk 0:00:06]}  g6 {[%clk 0:00:02]} 66. Nc6 {[%clk 0:00:06]}  Kg7 {[%clk 0:00:03]} 67. Ne5 {[%clk 0:00:06]}  Kf6 {[%clk 0:00:03]} 68. Nf3 {[%clk 0:00:07]}  Ke6 {[%clk 0:00:03]} 69. Kg3 {[%clk 0:00:07]}  Kd5 {[%clk 0:00:03]} 70. h4 {[%clk 0:00:07]}  Ne2+ {[%clk 0:00:04]} 71. Kg2 {[%clk 0:00:08]}  Nf4+ {[%clk 0:00:03]} 72. Kg3 {[%clk 0:00:08]}  Ne6 {[%clk 0:00:03]} 73. hxg5 {[%clk 0:00:08]}  hxg5 {[%clk 0:00:02]} 74. Ng1 {[%clk 0:00:08]}  Ke4 {[%clk 0:00:02]} 75. Nf3 {[%clk 0:00:08]}  Kd5 {[%clk 0:00:02]} 76. Ng1 {[%clk 0:00:08]}  Nd4 {[%clk 0:00:03]} 77. Nh3 {[%clk 0:00:08]}  Ne6 {[%clk 0:00:03]} 78. f4 {[%clk 0:00:07]}  Ke4 {[%clk 0:00:02]} 79. Nxg5+ {[%clk 0:00:06]}  Nxg5 {[%clk 0:00:02]} 80. fxg5 {[%clk 0:00:07]}  Ke3 {[%clk 0:00:03]} 81. Kg2 {[%clk 0:00:06]}  Kf4 {[%clk 0:00:03]} 82. Kh3 {[%clk 0:00:06]}  Kf3 {[%clk 0:00:04]} 83. Kh4 {[%clk 0:00:06]}  Kg2 {[%clk 0:00:05]} 1/2-1/2


[Site "https://www.chess.com"]

[Event "Titled Tuesday Blitz December 06 Late 2022"]
[White "Espinosa, Pedro"]
[Black "Seletsky, Grigory"]
[WhiteFideId "30921066"]
[BlackFideId "14112191"]
[WhiteElo "2016"]
[BlackElo "2492"]
[Result "1-0"]
[Round "07"]
[TimeControl "180+1"]
[Date "2022.12.07"]
[WhiteClock "0:01:05"]
[BlackClock "0:00:48"]

1. d4 {[%clk 0:02:53]}  d6 {[%clk 0:02:58]} 2. c4 {[%clk 0:02:48]}  e5 {[%clk 0:02:56]} 3. Nf3 {[%clk 0:02:47]}  Nc6 {[%clk 0:02:55]} 4. Nc3 {[%clk 0:02:46]}  Nf6 {[%clk 0:02:50]} 5. e4 {[%clk 0:02:42]}  Bg4 {[%clk 0:02:47]} 6. d5 {[%clk 0:02:41]}  Nd4 {[%clk 0:02:46]} 7. Be3 {[%clk 0:02:40]}  c5 {[%clk 0:02:38]} 8. dxc6 {[%clk 0:02:34]}  Nxc6 {[%clk 0:02:36]} 9. Be2 {[%clk 0:02:33]}  Be7 {[%clk 0:02:32]} 10. O-O {[%clk 0:02:33]}  O-O {[%clk 0:02:31]} 11. h3 {[%clk 0:02:33]}  Bh5 {[%clk 0:02:25]} 12. Nd2 {[%clk 0:02:28]}  Bg6 {[%clk 0:02:24]} 13. Bd3 {[%clk 0:02:26]}  Ne8 {[%clk 0:02:22]} 14. a3 {[%clk 0:02:23]}  Bg5 {[%clk 0:02:22]} 15. Bxg5 {[%clk 0:02:20]}  Qxg5 {[%clk 0:02:21]} 16. Nf3 {[%clk 0:02:17]}  Qd8 {[%clk 0:02:19]} 17. Nd5 {[%clk 0:02:15]}  Nc7 {[%clk 0:02:18]} 18. b4 {[%clk 0:02:14]}  Bh5 {[%clk 0:02:15]} 19. Be2 {[%clk 0:02:12]}  Bxf3 {[%clk 0:02:14]} 20. Bxf3 {[%clk 0:02:12]}  Nd4 {[%clk 0:02:14]} 21. g3 {[%clk 0:02:10]}  Nxd5 {[%clk 0:02:14]} 22. cxd5 {[%clk 0:02:09]}  Rc8 {[%clk 0:02:13]} 23. Bg2 {[%clk 0:02:08]}  Rc3 {[%clk 0:02:11]} 24. Kh2 {[%clk 0:01:58]}  Qg5 {[%clk 0:01:53]} 25. Qa4 {[%clk 0:01:38]}  a6 {[%clk 0:01:44]} 26. Qd7 {[%clk 0:01:38]}  Qg6 {[%clk 0:01:04]} 27. Rac1 {[%clk 0:01:25]}  Rxa3 {[%clk 0:00:59]} 28. Rc8 {[%clk 0:01:23]}  f5 {[%clk 0:00:49]} 29. Rxf8+ {[%clk 0:01:04]}  Kxf8 {[%clk 0:00:48]} 30. Rc1 {[%clk 0:01:05]} 1-0


[Site "https://www.chess.com"]

[Event "Titled Tuesday Blitz December 06 Late 2022"]
[White "Estrada Nieto, Julian"]
[Black "Romero Ruscalleda, Josep"]
[WhiteFideId "5101018"]
[BlackFideId "2231859"]
[WhiteElo "2195"]
[BlackElo "2183"]
[Result "1-0"]
[Round "07"]
[TimeControl "180+1"]
[Date "2022.12.07"]
[WhiteClock "0:00:13"]
[BlackClock "0:00:02"]

1. e4 {[%clk 0:03:00]}  g6 {[%clk 0:03:00]} 2. d4 {[%clk 0:03:00]}  Bg7 {[%clk 0:03:01]} 3. Nf3 {[%clk 0:03:01]}  d6 {[%clk 0:03:01]} 4. Nc3 {[%clk 0:03:01]}  a6 {[%clk 0:03:00]} 5. Be2 {[%clk 0:03:00]}  b5 {[%clk 0:03:00]} 6. a3 {[%clk 0:02:58]}  Bb7 {[%clk 0:03:00]} 7. O-O {[%clk 0:02:59]}  Nd7 {[%clk 0:02:59]} 8. Re1 {[%clk 0:02:53]}  c5 {[%clk 0:02:59]} 9. d5 {[%clk 0:02:53]}  Ngf6 {[%clk 0:02:58]} 10. Bf1 {[%clk 0:02:50]}  O-O {[%clk 0:02:58]} 11. h3 {[%clk 0:02:50]}  Qc7 {[%clk 0:02:50]} 12. Bf4 {[%clk 0:02:49]}  Rfe8 {[%clk 0:02:43]} 13. Qd2 {[%clk 0:02:48]}  c4 {[%clk 0:02:36]} 14. e5 {[%clk 0:02:42]}  dxe5 {[%clk 0:02:27]} 15. Nxe5 {[%clk 0:02:41]}  Nxe5 {[%clk 0:02:27]} 16. Bxe5 {[%clk 0:02:41]}  Qd7 {[%clk 0:02:26]} 17. Rad1 {[%clk 0:02:38]}  Rad8 {[%clk 0:02:24]} 18. Qd4 {[%clk 0:02:30]}  Nh5 {[%clk 0:01:48]} 19. Qb6 {[%clk 0:02:03]}  Bxe5 {[%clk 0:01:40]} 20. Rxe5 {[%clk 0:02:03]}  Qd6 {[%clk 0:01:33]} 21. Qxd6 {[%clk 0:01:42]}  Rxd6 {[%clk 0:01:33]} 22. g3 {[%clk 0:01:35]}  Nf6 {[%clk 0:01:29]} 23. Bg2 {[%clk 0:01:33]}  Kf8 {[%clk 0:01:30]} 24. g4 {[%clk 0:01:33]}  h6 {[%clk 0:01:27]} 25. Rde1 {[%clk 0:01:27]}  Nd7 {[%clk 0:01:09]} 26. R5e2 {[%clk 0:01:24]}  Nb6 {[%clk 0:01:08]} 27. Ne4 {[%clk 0:01:18]}  Rdd8 {[%clk 0:00:51]} 28. Nc5 {[%clk 0:01:08]}  Bxd5 {[%clk 0:00:45]} 29. Nxa6 {[%clk 0:01:08]}  Bxg2 {[%clk 0:00:42]} 30. Kxg2 {[%clk 0:01:08]}  Nd5 {[%clk 0:00:38]} 31. Kg3 {[%clk 0:00:57]}  Rc8 {[%clk 0:00:33]} 32. c3 {[%clk 0:00:54]}  e6 {[%clk 0:00:29]} 33. Nb4 {[%clk 0:00:53]}  Nxb4 {[%clk 0:00:28]} 34. axb4 {[%clk 0:00:54]}  Red8 {[%clk 0:00:22]} 35. Re5 {[%clk 0:00:51]}  Rd5 {[%clk 0:00:19]} 36. Rxd5 {[%clk 0:00:45]}  exd5 {[%clk 0:00:19]} 37. Re5 {[%clk 0:00:45]}  Rd8 {[%clk 0:00:19]} 38. Kf3 {[%clk 0:00:44]}  f6 {[%clk 0:00:19]} 39. Re6 {[%clk 0:00:44]}  Kf7 {[%clk 0:00:20]} 40. Rb6 {[%clk 0:00:44]}  d4 {[%clk 0:00:20]} 41. cxd4 {[%clk 0:00:43]}  Rxd4 {[%clk 0:00:19]} 42. Rxb5 {[%clk 0:00:43]}  Rd3+ {[%clk 0:00:20]} 43. Kg2 {[%clk 0:00:41]}  Rb3 {[%clk 0:00:20]} 44. Rb7+ {[%clk 0:00:34]}  Ke6 {[%clk 0:00:20]} 45. Rc7 {[%clk 0:00:24]}  Rxb4 {[%clk 0:00:19]} 46. Rc6+ {[%clk 0:00:24]}  Ke5 {[%clk 0:00:19]} 47. Kg3 {[%clk 0:00:23]}  h5 {[%clk 0:00:16]} 48. f4+ {[%clk 0:00:21]}  Kd5 {[%clk 0:00:14]} 49. Rxf6 {[%clk 0:00:21]}  hxg4 {[%clk 0:00:15]} 50. hxg4 {[%clk 0:00:22]}  Rxb2 {[%clk 0:00:14]} 51. Rxg6 {[%clk 0:00:21]}  c3 {[%clk 0:00:14]} 52. Rg8 {[%clk 0:00:21]}  c2 {[%clk 0:00:10]} 53. Rc8 {[%clk 0:00:20]}  Kd4 {[%clk 0:00:11]} 54. Kh4 {[%clk 0:00:16]}  Kd3 {[%clk 0:00:06]} 55. f5 {[%clk 0:00:14]}  Rb4 {[%clk 0:00:04]} 56. f6 {[%clk 0:00:12]}  Rc4 {[%clk 0:00:04]} 57. Rxc4 {[%clk 0:00:11]}  Kxc4 {[%clk 0:00:04]} 58. f7 {[%clk 0:00:12]}  c1=Q {[%clk 0:00:02]} 59. f8=Q {[%clk 0:00:13]} 1-0


[Site "https://www.chess.com"]

[Event "Titled Tuesday Blitz December 06 Late 2022"]
[White "Fernandez De La Vara, Arnaldo"]
[Black "Winterberg, Lukas"]
[WhiteFideId "3518388"]
[BlackFideId "24622702"]
[WhiteElo "2387"]
[BlackElo "2350"]
[Result "0-1"]
[Round "07"]
[TimeControl "180+1"]
[Date "2022.12.07"]
[WhiteClock "0:00:03"]
[BlackClock "0:00:07"]

1. Nf3 {[%clk 0:03:00]}  Nf6 {[%clk 0:02:59]} 2. b3 {[%clk 0:03:00]}  d5 {[%clk 0:02:55]} 3. c4 {[%clk 0:02:59]}  c5 {[%clk 0:02:56]} 4. cxd5 {[%clk 0:02:59]}  Nxd5 {[%clk 0:02:57]} 5. g3 {[%clk 0:02:57]}  Nc6 {[%clk 0:02:57]} 6. Bb2 {[%clk 0:02:58]}  f6 {[%clk 0:02:56]} 7. Bg2 {[%clk 0:02:58]}  e5 {[%clk 0:02:56]} 8. O-O {[%clk 0:02:59]}  Be6 {[%clk 0:02:56]} 9. d3 {[%clk 0:02:57]}  Be7 {[%clk 0:02:55]} 10. Nbd2 {[%clk 0:02:57]}  O-O {[%clk 0:02:55]} 11. a3 {[%clk 0:02:58]}  Kh8 {[%clk 0:02:54]} 12. e3 {[%clk 0:02:50]}  Qd7 {[%clk 0:02:47]} 13. Qc2 {[%clk 0:02:48]}  Rac8 {[%clk 0:02:45]} 14. Rac1 {[%clk 0:02:44]}  Rfd8 {[%clk 0:02:44]} 15. Rfd1 {[%clk 0:02:43]}  Nb6 {[%clk 0:02:34]} 16. Nc4 {[%clk 0:02:35]}  Nxc4 {[%clk 0:02:28]} 17. bxc4 {[%clk 0:02:18]}  Bf5 {[%clk 0:02:17]} 18. Nh4 {[%clk 0:01:48]}  Bxd3 {[%clk 0:02:10]} 19. Qc3 {[%clk 0:01:45]}  g5 {[%clk 0:02:04]} 20. Bf1 {[%clk 0:01:24]}  e4 {[%clk 0:01:54]} 21. Nf3 {[%clk 0:00:52]}  Qf5 {[%clk 0:01:48]} 22. Bxd3 {[%clk 0:00:40]}  Qxf3 {[%clk 0:01:35]} 23. Bc2 {[%clk 0:00:31]}  Ne5 {[%clk 0:01:32]} 24. Qb3 {[%clk 0:00:23]}  Ng4 {[%clk 0:01:01]} 25. Rf1 {[%clk 0:00:22]}  Rd2 {[%clk 0:00:54]} 26. Bd1 {[%clk 0:00:18]}  Qf5 {[%clk 0:00:53]} 27. Qxb7 {[%clk 0:00:07]}  Nxf2 {[%clk 0:00:38]} 28. Bh5 {[%clk 0:00:03]}  Bd6 {[%clk 0:00:14]} 29. Qf7 {[%clk 0:00:03]}  Rxb2 {[%clk 0:00:08]} 30. Rcd1 {[%clk 0:00:02]}  Bf8 {[%clk 0:00:05]} 31. Qd5 {[%clk 0:00:01]}  Qxd5 {[%clk 0:00:05]} 32. Rxd5 {[%clk 0:00:02]}  Nd3 {[%clk 0:00:04]} 33. Rxf6 {[%clk 0:00:02]}  Bg7 {[%clk 0:00:04]} 34. Rf7 {[%clk 0:00:02]}  Rb1+ {[%clk 0:00:04]} 35. Kg2 {[%clk 0:00:03]}  Rb2+ {[%clk 0:00:05]} 36. Kg1 {[%clk 0:00:03]}  Rf8 {[%clk 0:00:05]} 37. Rdd7 {[%clk 0:00:02]}  Rxf7 {[%clk 0:00:05]} 38. Bxf7 {[%clk 0:00:02]}  Rb1+ {[%clk 0:00:04]} 39. Kg2 {[%clk 0:00:02]}  Rb2+ {[%clk 0:00:05]} 40. Kf1 {[%clk 0:00:02]}  Ne5 {[%clk 0:00:06]} 41. Rd8+ {[%clk 0:00:02]}  Bf8 {[%clk 0:00:07]} 42. Bd5 {[%clk 0:00:03]}  Kg7 {[%clk 0:00:08]} 43. Bxe4 {[%clk 0:00:03]}  Ng4 {[%clk 0:00:07]} 44. Ke1 {[%clk 0:00:03]}  Nxe3 {[%clk 0:00:07]} 45. Rd7+ {[%clk 0:00:03]}  Kf6 {[%clk 0:00:07]} 46. Rxh7 {[%clk 0:00:04]}  Bg7 {[%clk 0:00:07]} 47. h4 {[%clk 0:00:02]}  gxh4 {[%clk 0:00:07]} 48. Rh6+ {[%clk 0:00:03]}  Bxh6 {[%clk 0:00:07]} 0-1


[Site "https://www.chess.com"]

[Event "Titled Tuesday Blitz December 06 Late 2022"]
[White "Fernandez Siles, Luis"]
[Black "Erzhanov, Arman"]
[WhiteFideId "2209420"]
[BlackFideId "4138821"]
[WhiteElo "2186"]
[BlackElo "2176"]
[Result "0-1"]
[Round "07"]
[TimeControl "180+1"]
[Date "2022.12.07"]
[WhiteClock "0:02:03"]
[BlackClock "0:02:48"]

1. d4 {[%clk 0:03:00]}  d6 {[%clk 0:03:00]} 2. Nf3 {[%clk 0:03:00]}  g6 {[%clk 0:03:00]} 3. c4 {[%clk 0:03:00]}  Bg7 {[%clk 0:03:00]} 4. Nc3 {[%clk 0:03:00]}  e5 {[%clk 0:03:01]} 5. e4 {[%clk 0:02:58]}  Bg4 {[%clk 0:02:57]} 6. dxe5 {[%clk 0:02:49]}  Bxf3 {[%clk 0:02:53]} 7. Qxf3 {[%clk 0:02:48]}  dxe5 {[%clk 0:02:53]} 8. Be3 {[%clk 0:02:24]}  Nc6 {[%clk 0:02:54]} 9. Rd1 {[%clk 0:02:19]}  Nd4 {[%clk 0:02:54]} 10. Bxd4 {[%clk 0:02:19]}  exd4 {[%clk 0:02:55]} 11. Nb5 {[%clk 0:02:19]}  c6 {[%clk 0:02:49]} 12. Na3 {[%clk 0:02:05]}  Qa5+ {[%clk 0:02:50]} 13. Rd2 {[%clk 0:02:03]}  Bh6 {[%clk 0:02:48]} 0-1


[Site "https://www.chess.com"]

[Event "Titled Tuesday Blitz December 06 Late 2022"]
[White "Ferriz Barrios, Andres"]
[Black "Saya, Ethan"]
[WhiteFideId "5104467"]
[BlackFideId "26095181"]
[WhiteElo "2245"]
[BlackElo "2178"]
[Result "1-0"]
[Round "07"]
[TimeControl "180+1"]
[Date "2022.12.07"]
[WhiteClock "0:00:30"]
[BlackClock "0:00:02"]

1. d4 {[%clk 0:03:00]}  Nf6 {[%clk 0:02:59]} 2. Nf3 {[%clk 0:02:57]}  e6 {[%clk 0:02:58]} 3. e3 {[%clk 0:02:56]}  b6 {[%clk 0:02:58]} 4. Nbd2 {[%clk 0:02:55]}  Bb7 {[%clk 0:02:59]} 5. Bd3 {[%clk 0:02:56]}  d5 {[%clk 0:02:58]} 6. O-O {[%clk 0:02:56]}  Nbd7 {[%clk 0:02:58]} 7. Re1 {[%clk 0:02:57]}  Bd6 {[%clk 0:02:59]} 8. Qe2 {[%clk 0:02:57]}  O-O {[%clk 0:02:58]} 9. e4 {[%clk 0:02:58]}  dxe4 {[%clk 0:02:59]} 10. Nxe4 {[%clk 0:02:58]}  Nxe4 {[%clk 0:03:00]} 11. Bxe4 {[%clk 0:02:59]}  Bxe4 {[%clk 0:03:00]} 12. Qxe4 {[%clk 0:03:00]}  Nf6 {[%clk 0:03:00]} 13. Qh4 {[%clk 0:03:00]}  c5 {[%clk 0:02:59]} 14. c3 {[%clk 0:02:56]}  cxd4 {[%clk 0:02:57]} 15. cxd4 {[%clk 0:02:57]}  Nd5 {[%clk 0:02:56]} 16. Bg5 {[%clk 0:02:56]}  Be7 {[%clk 0:02:55]} 17. Bxe7 {[%clk 0:02:51]}  Qxe7 {[%clk 0:02:53]} 18. Qe4 {[%clk 0:02:51]}  Rac8 {[%clk 0:02:51]} 19. a3 {[%clk 0:02:51]}  Rfd8 {[%clk 0:02:46]} 20. Rac1 {[%clk 0:02:50]}  Qd6 {[%clk 0:02:41]} 21. Ng5 {[%clk 0:02:46]}  Nf6 {[%clk 0:02:39]} 22. Qb7 {[%clk 0:02:27]}  Qf8 {[%clk 0:02:22]} 23. Rxc8 {[%clk 0:02:17]}  Rxc8 {[%clk 0:02:22]} 24. Qxa7 {[%clk 0:02:17]}  b5 {[%clk 0:02:19]} 25. Qa5 {[%clk 0:02:12]}  b4 {[%clk 0:02:17]} 26. axb4 {[%clk 0:02:07]}  Rc2 {[%clk 0:02:16]} 27. h3 {[%clk 0:02:03]}  Rxb2 {[%clk 0:02:16]} 28. b5 {[%clk 0:01:45]}  h6 {[%clk 0:02:13]} 29. Nf3 {[%clk 0:01:43]}  Qb4 {[%clk 0:02:10]} 30. Qd8+ {[%clk 0:01:43]}  Kh7 {[%clk 0:02:11]} 31. Re5 {[%clk 0:01:43]}  Qc4 {[%clk 0:01:59]} 32. Qe7 {[%clk 0:01:31]}  Qc1+ {[%clk 0:01:54]} 33. Kh2 {[%clk 0:01:29]}  Qf4+ {[%clk 0:01:54]} 34. Kg1 {[%clk 0:01:21]}  Rb1+ {[%clk 0:01:53]} 35. Re1 {[%clk 0:01:21]}  Rxe1+ {[%clk 0:01:49]} 36. Nxe1 {[%clk 0:01:22]}  Ne4 {[%clk 0:01:49]} 37. Nf3 {[%clk 0:01:15]}  Qc1+ {[%clk 0:01:45]} 38. Kh2 {[%clk 0:01:14]}  Qf4+ {[%clk 0:01:45]} 39. Kg1 {[%clk 0:01:13]}  Qc1+ {[%clk 0:01:29]} 40. Kh2 {[%clk 0:01:13]}  Nxf2 {[%clk 0:01:28]} 41. Qxf7 {[%clk 0:01:08]}  Qh1+ {[%clk 0:01:25]} 42. Kg3 {[%clk 0:01:07]}  Ne4+ {[%clk 0:01:26]} 43. Kf4 {[%clk 0:01:04]}  Nf6 {[%clk 0:01:03]} 44. Qxe6 {[%clk 0:01:00]}  Qc1+ {[%clk 0:00:57]} 45. Kg3 {[%clk 0:00:55]}  Nh5+ {[%clk 0:00:51]} 46. Kh4 {[%clk 0:00:46]}  Nf4 {[%clk 0:00:33]} 47. Qe4+ {[%clk 0:00:44]}  Ng6+ {[%clk 0:00:32]} 48. Kg3 {[%clk 0:00:41]}  Qb2 {[%clk 0:00:27]} 49. Qf5 {[%clk 0:00:37]}  Qc3 {[%clk 0:00:24]} 50. h4 {[%clk 0:00:36]}  Qc7+ {[%clk 0:00:21]} 51. Kg4 {[%clk 0:00:31]}  h5+ {[%clk 0:00:03]} 52. Qxh5+ {[%clk 0:00:29]}  Kg8 {[%clk 0:00:04]} 53. Qxg6 {[%clk 0:00:30]}  Qd7+ {[%clk 0:00:03]} 54. Qf5 {[%clk 0:00:30]}  Qd8 {[%clk 0:00:02]} 55. b6 {[%clk 0:00:28]}  Qc8 {[%clk 0:00:01]} 56. Qxc8+ {[%clk 0:00:28]}  Kh7 {[%clk 0:00:01]} 57. Ng5+ {[%clk 0:00:28]}  Kh6 {[%clk 0:00:01]} 58. Qh8+ {[%clk 0:00:28]}  Kg6 {[%clk 0:00:01]} 59. Qh5+ {[%clk 0:00:29]}  Kf6 {[%clk 0:00:02]} 60. Qf7# {[%clk 0:00:30]} 1-0


[Site "https://www.chess.com"]

[Event "Titled Tuesday Blitz December 06 Late 2022"]
[White "Freile Martin, Javier"]
[Black "Kavutskiy, Konstantin"]
[WhiteFideId "3600165"]
[BlackFideId "2026384"]
[WhiteElo "2354"]
[BlackElo "2386"]
[Result "0-1"]
[Round "07"]
[TimeControl "180+1"]
[Date "2022.12.07"]
[WhiteClock "0:00:03"]
[BlackClock "0:00:09"]

1. c4 {[%clk 0:02:53]}  g6 {[%clk 0:02:59]} 2. d4 {[%clk 0:02:52]}  Bg7 {[%clk 0:02:59]} 3. e4 {[%clk 0:02:52]}  d6 {[%clk 0:03:00]} 4. Nc3 {[%clk 0:02:52]}  Nf6 {[%clk 0:03:00]} 5. Nf3 {[%clk 0:02:51]}  O-O {[%clk 0:03:00]} 6. Be2 {[%clk 0:02:51]}  e5 {[%clk 0:03:00]} 7. O-O {[%clk 0:02:50]}  h6 {[%clk 0:03:00]} 8. d5 {[%clk 0:02:46]}  a5 {[%clk 0:02:57]} 9. Ne1 {[%clk 0:02:45]}  b6 {[%clk 0:02:57]} 10. Nd3 {[%clk 0:02:44]}  Na6 {[%clk 0:02:53]} 11. Be3 {[%clk 0:02:43]}  Nd7 {[%clk 0:02:50]} 12. Qd2 {[%clk 0:02:40]}  Kh7 {[%clk 0:02:50]} 13. a3 {[%clk 0:02:35]}  f5 {[%clk 0:02:50]} 14. f3 {[%clk 0:02:34]}  f4 {[%clk 0:02:50]} 15. Bf2 {[%clk 0:02:34]}  Ndc5 {[%clk 0:02:47]} 16. Nxc5 {[%clk 0:02:27]}  bxc5 {[%clk 0:02:37]} 17. g4 {[%clk 0:02:15]}  h5 {[%clk 0:02:34]} 18. h3 {[%clk 0:02:13]}  Bf6 {[%clk 0:02:33]} 19. Qe1 {[%clk 0:02:12]}  Nb8 {[%clk 0:02:30]} 20. Kg2 {[%clk 0:02:10]}  Rh8 {[%clk 0:02:25]} 21. Rh1 {[%clk 0:02:09]}  Kg8 {[%clk 0:02:25]} 22. Nb5 {[%clk 0:02:03]}  Nd7 {[%clk 0:02:24]} 23. b4 {[%clk 0:02:02]}  axb4 {[%clk 0:02:15]} 24. axb4 {[%clk 0:02:02]}  Rxa1 {[%clk 0:02:15]} 25. Qxa1 {[%clk 0:02:01]}  Bh4 {[%clk 0:02:16]} 26. Bg1 {[%clk 0:01:48]}  Rh7 {[%clk 0:01:39]} 27. bxc5 {[%clk 0:01:37]}  Nxc5 {[%clk 0:01:36]} 28. Qa8 {[%clk 0:01:30]}  Bd7 {[%clk 0:01:17]} 29. Qxd8+ {[%clk 0:01:25]}  Bxd8 {[%clk 0:01:17]} 30. Bxc5 {[%clk 0:01:23]}  dxc5 {[%clk 0:01:15]} 31. Ra1 {[%clk 0:01:19]}  Bxb5 {[%clk 0:01:03]} 32. cxb5 {[%clk 0:01:18]}  Be7 {[%clk 0:00:58]} 33. Bc4 {[%clk 0:01:14]}  Bd6 {[%clk 0:00:57]} 34. Ra8+ {[%clk 0:01:09]}  Kg7 {[%clk 0:00:56]} 35. Re8 {[%clk 0:00:59]}  Kh6 {[%clk 0:00:52]} 36. h4 {[%clk 0:00:55]}  hxg4 {[%clk 0:00:49]} 37. fxg4 {[%clk 0:00:55]}  Rf7 {[%clk 0:00:46]} 38. Kf3 {[%clk 0:00:53]}  Kg7 {[%clk 0:00:44]} 39. g5 {[%clk 0:00:52]}  Rd7 {[%clk 0:00:40]} 40. Bf1 {[%clk 0:00:48]}  Kf7 {[%clk 0:00:37]} 41. Rh8 {[%clk 0:00:45]}  Kg7 {[%clk 0:00:33]} 42. Rc8 {[%clk 0:00:43]}  Rf7 {[%clk 0:00:22]} 43. Bh3 {[%clk 0:00:42]}  Rf8 {[%clk 0:00:21]} 44. Rxf8 {[%clk 0:00:40]}  Kxf8 {[%clk 0:00:22]} 45. Be6 {[%clk 0:00:36]}  c4 {[%clk 0:00:21]} 46. Ke2 {[%clk 0:00:28]}  Bb4 {[%clk 0:00:19]} 47. Bg4 {[%clk 0:00:26]}  Ke7 {[%clk 0:00:16]} 48. h5 {[%clk 0:00:26]}  gxh5 {[%clk 0:00:16]} 49. Bxh5 {[%clk 0:00:26]}  Ba5 {[%clk 0:00:15]} 50. Bg4 {[%clk 0:00:24]}  Kd6 {[%clk 0:00:14]} 51. Be6 {[%clk 0:00:23]}  Ke7 {[%clk 0:00:14]} 52. d6+ {[%clk 0:00:22]}  Kxd6 {[%clk 0:00:09]} 53. Bxc4 {[%clk 0:00:21]}  Ke7 {[%clk 0:00:08]} 54. g6 {[%clk 0:00:21]}  Kf6 {[%clk 0:00:09]} 55. Bf7 {[%clk 0:00:20]}  Bb6 {[%clk 0:00:08]} 56. Kf3 {[%clk 0:00:20]}  Kg7 {[%clk 0:00:09]} 57. Kg4 {[%clk 0:00:19]}  Bd4 {[%clk 0:00:09]} 58. Kf5 {[%clk 0:00:18]}  f3 {[%clk 0:00:09]} 59. Bc4 {[%clk 0:00:18]}  f2 {[%clk 0:00:09]} 60. Bf1 {[%clk 0:00:18]}  Bc3 {[%clk 0:00:09]} 61. Kg5 {[%clk 0:00:15]}  Bd2+ {[%clk 0:00:08]} 62. Kf5 {[%clk 0:00:15]}  Bf4 {[%clk 0:00:08]} 63. Ke6 {[%clk 0:00:13]}  Kxg6 {[%clk 0:00:08]} 64. Kd7 {[%clk 0:00:13]}  Be3 {[%clk 0:00:07]} 65. Kxc7 {[%clk 0:00:13]}  Kg5 {[%clk 0:00:07]} 66. b6 {[%clk 0:00:13]}  Kf4 {[%clk 0:00:06]} 67. b7 {[%clk 0:00:13]}  Ba7 {[%clk 0:00:07]} 68. Kd6 {[%clk 0:00:11]}  Kxe4 {[%clk 0:00:06]} 69. Kc7 {[%clk 0:00:07]}  Kf4 {[%clk 0:00:06]} 70. b8=Q {[%clk 0:00:07]}  Bxb8+ {[%clk 0:00:06]} 71. Kxb8 {[%clk 0:00:07]}  e4 {[%clk 0:00:06]} 72. Kc7 {[%clk 0:00:07]}  e3 {[%clk 0:00:07]} 73. Be2 {[%clk 0:00:04]}  Kg3 {[%clk 0:00:06]} 74. Kd6 {[%clk 0:00:04]}  Kg2 {[%clk 0:00:06]} 75. Ke5 {[%clk 0:00:04]}  f1=Q {[%clk 0:00:07]} 76. Bxf1+ {[%clk 0:00:04]}  Kxf1 {[%clk 0:00:08]} 77. Kf4 {[%clk 0:00:03]}  e2 {[%clk 0:00:09]} 78. Kg3 {[%clk 0:00:03]}  e1=Q+ {[%clk 0:00:10]} 79. Kh2 {[%clk 0:00:03]}  Qh4# {[%clk 0:00:09]} 0-1


[Site "https://www.chess.com"]